fUSD/lending_fUSD_20241110
["ID","MTS","AMOUNT","RATE_DAILY","PERIOD"]
[341783604,1731223832955,-1000.0,0.000144,2]
[341783605,1731223832963,-400.0,0.000144,2]
[341783606,1731223832972,-1000.0,0.000144,2]
[341783607,1731223832981,-1000.0,0.000144,2]
[341783608,1731223832991,-524.0,0.000144,2]
[341783609,1731223832999,-1000.0,0.000144,3]
[341783610,1731223833009,-195.30822007,0.000144,2]
[341783611,1731223833019,-3363.10081279,0.00014401,2]
[341783612,1731223833028,-3363.10081279,0.00014405,2]
[341783613,1731223833037,-712.61076045,0.00014407,2]
[341783614,1731223833047,-712.61076045,0.00014414,2]
[341783615,1731223833056,-195.30822007,0.00014415,2]
[341783616,1731223833065,-712.61076045,0.00014421,2]
[341783617,1731223833075,-712.61076045,0.00014429,2]
[341783618,1731223833084,-712.61076045,0.00014436,2]
[341783619,1731223833094,-712.61076045,0.00014443,2]
[341783620,1731223833103,-712.61076045,0.0001445,2]
[341783621,1731223833113,-180.38947679,0.0001445,2]
[341783622,1731223833122,-500.0,0.0001445,2]
[341783623,1731223833131,-500.0,0.0001445,2]
[341783624,1731223833141,-416.44843035,0.0001445,2]
[341783625,1731223833151,-500.0,0.0001445,2]
[341783626,1731223833160,-500.0,0.0001445,2]
[341783627,1731223833169,-500.0,0.0001445,2]
[341783628,1731223833181,-500.0,0.0001445,2]
[341783629,1731223833191,-500.0,0.0001445,2]
[341783630,1731223833200,-546.08274496,0.0001445,2]
[341783631,1731223833209,-500.0,0.0001445,2]
[341783632,1731223833218,-559.63566168,0.0001445,2]
[341783633,1731223833228,-5875.119,0.00014451,2]
[341783634,1731223833238,-314.57873668,0.00014466,2]
[341783635,1731223833248,-574.8425665,0.00014466,2]
[341783636,1731223833258,-55184.7748556,0.00014472,2]
[341783637,1731223833268,-853.06451604,0.00014472,2]
[341783638,1731223833277,-500.0,0.00014473,2]
[341783639,1731223833286,-500.0,0.00014473,2]
[341783640,1731223833296,-500.0,0.00014473,2]
[341783641,1731223833305,-160.41954809,0.00014473,2]
[341783642,1731223833315,-500.0,0.00014473,2]
[341783643,1731223833324,-500.0,0.00014473,2]
[341783644,1731223833333,-1068.1,0.00014478,2]
[341783645,1731223833342,-234.15,0.00014484,3]
[341783646,1731223833351,-41341.7756,0.00014494,2]
[341783647,1731223833360,-751.553726,0.00014498,2]
[341783648,1731223833369,-174.53887302,0.00014499,2]
[341783649,1731223833379,-500.0,0.00014499,2]
[341783650,1731223833388,-500.0,0.00014499,2]
[341783651,1731223833397,-500.0,0.00014499,2]
[341783652,1731223833407,-500.0,0.00014499,2]
[341783653,1731223833417,-500.0,0.00014499,2]
[341783654,1731223833428,-500.0,0.00014499,2]
[341783655,1731223833438,-500.0,0.00014499,2]
[341783656,1731223833447,-500.0,0.00014499,2]
[341783657,1731223833457,-500.0,0.00014499,2]
[341783658,1731223833466,-500.0,0.00014499,2]
[341783659,1731223833476,-205.47623836,0.00014499,2]
[341783660,1731223833485,-500.0,0.00014499,2]
[341783661,1731223833494,-500.0,0.00014499,2]
[341783662,1731223833503,-500.0,0.00014499,2]
[341783663,1731223833513,-150.0,0.00014499,2]
[341783664,1731223833522,-500.0,0.00014499,2]
[341783665,1731223833531,-500.0,0.00014499,2]
[341783666,1731223833540,-500.0,0.00014499,2]
[341783667,1731223833550,-500.0,0.00014499,2]
[341783668,1731223833559,-150.0,0.00014499,2]
[341783669,1731223833568,-1120.23110249,0.00014499,5]
[341783670,1731223833578,-195.51108701,0.000145,2]
[341783671,1731223833587,-4941310.72174124,0.000145,2]
[341783674,1731223837951,-1139.0123,0.0001441,2]
[341783675,1731223838013,-2224.08851279,0.0001441,2]
[341783676,1731223838022,-500.0,0.00014473,2]
[341783677,1731223838031,-3346.12624018,0.000145,2]
[341783678,1731223838075,-5919.15323282,0.000145,2]
[341783679,1731223838085,-10064.99,0.000145,2]
[341783680,1731223838217,-128535.23419966,0.000145,2]
[341783681,1731223838228,-3815.7077,0.000145,2]
[341783682,1731223838304,-3386464.63753979,0.000145,2]
[341783683,1731223838315,-2729.6861909,0.000145,2]
[341783684,1731223838327,-2888.36033676,0.000145,2]
[341783685,1731223838339,-926.06948629,0.000145,2]
[341783686,1731223838351,-294.33987727,0.000145,2]
[341783706,1731223841865,-370.71326909,0.000145,2]
[341783707,1731223841964,-316.24199157,0.000145,2]
[341783708,1731223841977,-478.395,0.000145,2]
[341783709,1731223841999,-3717.22313481,0.000145,2]
[341783714,1731223843352,-691.51784088,0.00014415,2]
[341783715,1731223843405,-2671.58297191,0.00014415,2]
[341783716,1731223843415,-93028.41702809,0.000145,2]
[341783717,1731223843436,-2151.55353911,0.000145,2]
[341783718,1731223843460,-3909.14389434,0.000145,2]
[341783719,1731223843492,-1595.28786008,0.000145,2]
[341783721,1731223843503,-84622.85480005,0.000145,2]
[341783723,1731223843514,-2703.29925933,0.000145,2]
[341783727,1731223843548,-2602.19999985,0.000145,2]
[341783729,1731223843559,-3949.6,0.000145,2]
[341783731,1731223843570,-14201.23603273,0.000145,2]
[341783733,1731223843581,-2519.36597863,0.000145,2]
[341783734,1731223843592,-2489.33737763,0.000145,2]
[341783736,1731223843603,-3064.01877398,0.000145,2]
[341783746,1731223846075,-3189.30000002,0.000145,2]
[341783747,1731223846232,-526.39206788,0.000145,2]
[341783748,1731223846244,-1237.86,0.000145,2]
[341783749,1731223846262,-6222.99803238,0.000145,2]
[341783750,1731223846277,-3185.0733,0.000145,2]
[341783752,1731223846466,-291336.09151932,0.000145,2]
[341783762,1731223961712,640.75,0.00011685,2]
[341783763,1731224007523,500.0,0.00027,120]
[341783764,1731224112959,15290.94,0.0001406,7]
[341783765,1731224149314,49590.21,0.0001406,7]
[341783770,1731224399809,-672.0,0.00013454,2]
[341783771,1731224399831,-348.95,0.00013561,2]
[341783772,1731224399853,-1000.0,0.00013568,2]
[341783773,1731224399877,-155.62,0.00013583,2]
[341783774,1731224399900,-1963.06,0.00013597,2]
[341783775,1731224399922,-250.0,0.000136,2]
[341783776,1731224399944,-200.0,0.00013603,2]
[341783777,1731224399965,-412.79,0.00013603,2]
[341783778,1731224399988,-640.75,0.00013949,2]
[341783779,1731224400012,-1763.79587311,0.000143,2]
[341783780,1731224400033,-1096.6773,0.000143,2]
[341783781,1731224400056,-300.0,0.0001431,2]
[341783782,1731224400079,-1763.79587305,0.00014311,2]
[341783783,1731224400101,-9423.67,0.00014311,2]
[341783784,1731224400126,-8.89095384,0.00014322,2]
[341783985,1731224612727,500.0,0.00025337,120]
[341783986,1731224790955,576.67,0.00011575,2]
[341783988,1731224830141,-250.0,0.00013427,2]
[341783989,1731224830163,-175.46,0.00013486,2]
[341783990,1731224830187,-250.0,0.00013494,2]
[341783991,1731224830210,-258.08915808,0.0001351,2]
[341783992,1731224841240,-51.04084192,0.0001351,2]
[341783993,1731224841264,-515.83733889,0.00013839,2]
[341783994,1731224849099,-60.83266111,0.00013839,2]
[341783995,1731224849120,-355.81163577,0.0001408,2]
[341783996,1731224849142,-300.0,0.00014299,2]
[341783997,1731224849163,-1000.0,0.000143,2]
[341783998,1731224849186,-1410.14760311,0.000143,2]
[341783999,1731224849208,-2500.0,0.000143,2]
[341784000,1731224849230,-1000.0,0.000143,2]
[341784001,1731224849254,-1410.14760305,0.00014314,2]
[341784002,1731224849276,-999.99,0.00014322,2]
[341784003,1731224849300,-417.96280744,0.00014328,2]
[341784004,1731224849323,-1410.14760305,0.00014328,2]
[341784005,1731224849346,-417.96280738,0.00014338,2]
[341784006,1731224849370,-939.74694601,0.00014343,2]
[341784007,1731224852111,-470.40065704,0.00014343,2]
[341784008,1731224852132,-417.96280738,0.00014349,2]
[341784009,1731224852156,-1410.14760305,0.00014357,2]
[341784010,1731224852178,-417.96280738,0.00014359,2]
[341784011,1731224852198,-288.70467121,0.0001436,2]
[341784012,1731224852221,-203.46013098,0.00014371,2]
[341784024,1731224997287,518.3,0.000125,2]
[341784045,1731225032365,-262.4,0.00013507,2]
[341784046,1731225032374,-1000.0,0.00013517,2]
[341784047,1731225032385,-579.4307,0.000143,2]
[341784048,1731225032394,-3556.6204,0.000143,2]
[341784049,1731225032403,-1944.75,0.000143,2]
[341784050,1731225032413,-1206.68747207,0.00014371,2]
[341784051,1731225032422,-1410.14760305,0.00014385,2]
[341784052,1731225032432,-500.0,0.00014394,2]
[341784053,1731225032441,-1000.0,0.00014398,2]
[341784054,1731225032450,-2397.36535582,0.00014398,2]
[341784055,1731225032459,-150.0,0.00014398,2]
[341784056,1731225032468,-52219.37154212,0.00014399,2]
[341784075,1731225038272,-1814.14712283,0.00014399,2]
[341784076,1731225038283,-4007.2851614,0.00014399,2]
[341784077,1731225038294,-1651.23999027,0.00014399,2]
[341784078,1731225038827,-839.78329542,0.00014399,2]
[341784079,1731225038839,-39468.17288796,0.00014399,2]
[341784080,1731225038848,-500.0,0.00014399,2]
[341784081,1731225038858,-500.0,0.00014399,2]
[341784082,1731225038868,-500.09359563,0.00014399,2]
[341784083,1731225038877,-500.0,0.00014399,2]
[341784084,1731225038887,-446.84252722,0.00014399,2]
[341784085,1731225038896,-1344.47,0.00014399,2]
[341784086,1731225038906,-165.273,0.00014399,2]
[341784087,1731225038915,-1410.14760305,0.000144,2]
[341784088,1731225038924,-11543.2098,0.000144,2]
[341784089,1731225038934,-485.5146,0.000144,2]
[341784090,1731225038943,-771.7545,0.000144,2]
[341784092,1731225038953,-151118.5344,0.000144,2]
[341784093,1731225038962,-178.58994373,0.000144,2]
[341784094,1731225038972,-2972.5123,0.000144,2]
[341784095,1731225038982,-389.6455,0.000144,2]
[341784096,1731225038991,-543.0673,0.000144,2]
[341784097,1731225039001,-200.0,0.000144,2]
[341784098,1731225039010,-169.55150417,0.000144,2]
[341784099,1731225039020,-718.31243863,0.000144,2]
[341784100,1731225039029,-151.70606885,0.000144,2]
[341784101,1731225039039,-1410.14760305,0.00014414,2]
[341784102,1731225039048,-8080.54989548,0.00014428,2]
[341784103,1731225039058,-1410.14760305,0.00014428,2]
[341784104,1731225039067,-159.82656507,0.0001445,2]
[341784105,1731225039076,-500.0,0.00014473,2]
[341784106,1731225039089,-608.23015029,0.00014473,2]
[341784107,1731225039098,-500.0,0.00014473,2]
[341784108,1731225039109,-2615.0,0.00014478,2]
[341784109,1731225039118,-500.0,0.00014499,2]
[341784110,1731225039129,-197.93684856,0.00014499,2]
[341784111,1731225039140,-500.0,0.00014499,2]
[341784112,1731225039149,-454939.59588098,0.000145,2]
[341784113,1731225039208,-9690.84888612,0.000145,2]
[341784116,1731225040295,-13239.97459748,0.000145,2]
[341784137,1731225040963,-720.68374495,0.000145,2]
[341784379,1731225043249,-5856.60111867,0.000145,2]
[341784383,1731225043260,-2264.03925,0.000145,2]
[341784387,1731225043271,-15933.50000017,0.000145,2]
[341784400,1731225043372,-962.3960238,0.000145,2]
[341784402,1731225043383,-8375.13717373,0.000145,2]
[341784404,1731225043398,-264.1010049,0.000145,2]
[341784406,1731225043409,-3171.49508603,0.000145,2]
[341784427,1731225043591,-886.56785771,0.000145,2]
[341784429,1731225043602,-515.58671433,0.000145,2]
[341784439,1731225043690,-9614.57987936,0.000145,2]
[341784442,1731225043702,-4742.11050061,0.000145,2]
[341784444,1731225043713,-380956.79261565,0.000145,2]
[341784446,1731225043724,-955.95,0.000145,2]
[341784448,1731225043735,-821.32,0.000145,2]
[341784621,1731225046403,-448.0909062,0.000145,2]
[341784622,1731225046553,-104434.21517206,0.000145,2]
[341784631,1731225046753,-10314.74459516,0.000145,2]
[341784647,1731225139095,2615.78889876,0.00016,7]
[341784648,1731225208152,500.0,0.00027,120]
[341784649,1731225313492,1088.0,0.000125,2]
[341784650,1731225329655,160.0,0.00027,120]
[341784651,1731225352298,2000.0,0.00016,7]
[341784652,1731225358851,180.0,0.00027,120]
[341784653,1731225406507,1000.0,0.00017161,15]
[341784670,1731225548816,536.36,0.00011453,2]
[341784674,1731225999188,150.0,0.00012505,5]
[341784675,1731226027131,-171.58,0.00012616,2]
[341784676,1731226027153,-250.0,0.00012623,2]
[341784677,1731226027176,-262.4,0.00012626,2]
[341784678,1731226027197,-346.32788542,0.00013277,2]
[341784679,1731226027218,-346.32788541,0.00013291,2]
[341784680,1731226027238,-155.38,0.00013335,2]
[341784681,1731226027260,-155.38,0.00013342,2]
[341784682,1731226027300,-155.38,0.00013349,2]
[341784683,1731226027321,-155.38,0.00013356,2]
[341784684,1731226027342,-150.0,0.0001336,2]
[341784685,1731226027362,-155.38,0.00013363,2]
[341784686,1731226027384,-155.38,0.0001337,2]
[341784687,1731226027406,-155.38,0.00013377,2]
[341784688,1731226027429,-118.24837516,0.00013384,2]
[341784689,1731226030118,-37.13162484,0.00013384,2]
[341784690,1731226030139,-250.0,0.00013387,2]
[341784691,1731226030160,-155.38,0.00013391,2]
[341784692,1731226030181,-155.38,0.00013398,2]
[341784693,1731226030204,-155.38,0.00013405,2]
[341784694,1731226030224,-155.38,0.00013412,2]
[341784695,1731226030247,-327.56617504,0.00013419,2]
[341784696,1731226041251,-482.42627108,0.00013419,2]
[341784697,1731226042096,-225.01408371,0.00013419,2]
[341784699,1731226086841,-257.31,0.00013076,2]
[341784700,1731226086866,-8095.61347017,0.00013419,2]
[341784701,1731226086891,-155.38,0.00013419,2]
[341784702,1731226086914,-155.38,0.00013426,2]
[341784703,1731226086937,-155.38,0.00013433,2]
[341784704,1731226086963,-155.38,0.0001344,2]
[341784705,1731226086987,-150.0,0.00013447,2]
[341784706,1731226087010,-155.38,0.00013447,2]
[341784707,1731226087035,-155.38,0.00013454,2]
[341784708,1731226087061,-155.38,0.00013461,2]
[341784709,1731226087084,-155.38,0.00013468,2]
[341784710,1731226087107,-300.0,0.00013629,2]
[341784711,1731226087130,-3308.03652983,0.0001363,2]
[341784741,1731226232375,-5025.58347017,0.0001363,2]
[341784742,1731226232384,-250.0,0.000137,2]
[341784743,1731226232394,-536.36,0.00013717,2]
[341784744,1731226232404,-150.0,0.000138,2]
[341784745,1731226232413,-1338.741712,0.00013877,2]
[341784746,1731226232423,-171.58,0.00013877,2]
[341784747,1731226232433,-303.05,0.00013878,2]
[341784748,1731226232442,-150.0,0.00013878,2]
[341784749,1731226232452,-335.36,0.00013949,2]
[341784750,1731226232461,-150.0,0.00013978,2]
[341784751,1731226232470,-761.84,0.000141,2]
[341784752,1731226232480,-2689.8522,0.000141,2]
[341784753,1731226232491,-426.22825879,0.00014154,2]
[341784754,1731226232500,-150.0,0.00014199,2]
[341784755,1731226232510,-479.9987029,0.00014199,2]
[341784756,1731226232520,-500.0,0.00014199,2]
[341784757,1731226232530,-190.9144284,0.00014199,2]
[341784758,1731226232540,-33077.77018101,0.000142,2]
[341784759,1731226232551,-4922.77103645,0.000142,2]
[341784760,1731226232563,-1373.08667666,0.000142,2]
[341784761,1731226232592,-426.32802667,0.000142,2]
[341784762,1731226232723,-1683.28757964,0.000142,2]
[341784763,1731226232734,-32341.18741337,0.000142,2]
[341784764,1731226232746,-595.5625,0.000142,2]
[341784767,1731226232768,-251.03914311,0.000142,2]
[341784774,1731226232823,-1240.49582389,0.000142,2]
[341784776,1731226232835,-58129.40918433,0.000142,2]
[341784780,1731226232868,-1248.65712204,0.000142,2]
[341784782,1731226232879,-924.92793892,0.000142,2]
[341784790,1731226238296,-18454.35638557,0.000142,2]
[341784791,1731226238307,-394.95774352,0.000142,2]
[341784792,1731226238344,-52157.57334482,0.000142,2]
[341784793,1731226238355,-154.97,0.000142,2]
[341784794,1731226238367,-1917.081,0.000142,2]
[341784795,1731226238376,-241.93630042,0.000142,2]
[341784796,1731226238385,-150.0,0.000142,2]
[341784797,1731226238394,-152.73,0.000142,2]
[341784798,1731226238403,-362.09,0.000142,2]
[341784799,1731226238414,-241.9363004,0.00014229,2]
[341784800,1731226238425,-241.9363004,0.00014257,2]
[341784801,1731226238436,-241.9363004,0.00014286,2]
[341784802,1731226238447,-252.30790169,0.00014299,2]
[341784803,1731226238456,-500.0,0.00014299,2]
[341784804,1731226238467,-500.0,0.00014299,2]
[341784805,1731226238477,-500.0,0.00014299,2]
[341784806,1731226238486,-500.0,0.00014299,2]
[341784807,1731226238495,-500.0,0.00014299,2]
[341784808,1731226238504,-500.0,0.00014299,2]
[341784809,1731226238515,-500.0,0.00014299,2]
[341784810,1731226238524,-500.0,0.00014299,2]
[341784811,1731226238533,-500.0,0.00014299,2]
[341784812,1731226238542,-570.5307645,0.00014299,2]
[341784813,1731226238550,-500.0,0.00014299,2]
[341784814,1731226238559,-500.0,0.00014299,2]
[341784815,1731226238570,-176.61553118,0.00014299,2]
[341784816,1731226238581,-500.0,0.00014299,2]
[341784817,1731226238590,-550.0,0.00014299,2]
[341784818,1731226238600,-589.2221,0.000143,2]
[341784819,1731226238611,-500.0,0.000143,2]
[341784820,1731226238620,-6974.3619,0.000143,2]
[341784821,1731226238629,-160283.2627,0.000143,2]
[341784823,1731226238978,-263.6214,0.000143,2]
[341784824,1731226238989,-37873.4214,0.000143,2]
[341784825,1731226239002,-5824.2315,0.000143,2]
[341784826,1731226239012,-10000.0,0.000143,2]
[341784827,1731226239021,-1461.0,0.000143,2]
[341784828,1731226239030,-241.9363004,0.00014314,2]
[341784829,1731226239041,-241.9363004,0.00014343,2]
[341784830,1731226239050,-241.9363004,0.00014371,2]
[341784831,1731226239060,-5800.0,0.00014383,2]
[341784832,1731226239072,-500.0,0.00014391,2]
[341784833,1731226239083,-5800.0,0.00014392,2]
[341784834,1731226239093,-155.45469238,0.00014399,2]
[341784835,1731226239103,-5689.0056,0.000144,2]
[341784836,1731226239113,-29523.7141,0.000144,2]
[341784837,1731226239123,-200.0,0.000144,2]
[341784838,1731226239133,-159.76367702,0.000144,2]
[341784839,1731226239142,-500.0,0.000144,2]
[341784840,1731226239153,-150.0,0.000144,2]
[341784841,1731226239163,-150.0,0.000144,2]
[341784842,1731226239175,-150.0,0.000144,2]
[341784843,1731226239186,-175.61202876,0.000144,2]
[341784844,1731226239195,-5800.0,0.000144,2]
[341784845,1731226239204,-180.29364497,0.000144,2]
[341784846,1731226239214,-241.9363004,0.000144,2]
[341784847,1731226239223,-335.36,0.00014442,2]
[341784848,1731226239234,-161.58642334,0.00014473,2]
[341784849,1731226239243,-500.0,0.00014473,2]
[341784850,1731226239253,-500.0,0.00014473,2]
[341784851,1731226239262,-219.1707474,0.00014489,2]
[341784852,1731226239272,-4129.0,0.00014493,2]
[341784853,1731226239281,-588.0,0.00014493,2]
[341784854,1731226239290,-2298.72218301,0.00014499,2]
[341784855,1731226239299,-662.47,0.00014499,2]
[341784856,1731226239309,-1046228.07534691,0.000145,2]
[341784857,1731226239339,-4073.68771212,0.000145,2]
[341784858,1731226239351,-5596.96233396,0.000145,2]
[341784859,1731226239363,-3496.32717482,0.000145,2]
[341784860,1731226239377,-3649.93045815,0.000145,2]
[341784865,1731226239431,-1137160.07666813,0.000145,2]
[341784871,1731226239488,-605.38897764,0.000145,2]
[341784875,1731226239512,-685.85215512,0.000145,2]
[341784878,1731226239530,-5012.498,0.000145,2]
[341784955,1731226240295,-801.0,0.000145,2]
[341784956,1731226240307,-7576.63289958,0.000145,2]
[341784957,1731226240321,-701.90166073,0.000145,2]
[341784958,1731226240332,-2221.61852529,0.000145,2]
[341784959,1731226240351,-3053.96163831,0.000145,2]
[341784960,1731226240459,-616.775001,0.000145,2]
[341784961,1731226240483,-923.51066602,0.000145,2]
[341785041,1731226243307,-2310.8591,0.000141,2]
[341785042,1731226243316,-16544.24180363,0.000145,2]
[341785043,1731226243361,-50153.50804096,0.000145,2]
[341785044,1731226243373,-75117.99924,0.000145,2]
[341785045,1731226243417,-2000.0,0.000145,2]
[341785046,1731226243471,-91053.50648126,0.000145,2]
[341785047,1731226243483,-53769.73637695,0.000145,2]
[341785048,1731226243494,-384.89982016,0.000145,2]
[341785049,1731226243567,-687.14370537,0.000145,2]
[341785050,1731226243579,-1790.72902264,0.000145,2]
[341785051,1731226243590,-499.01811593,0.000145,2]
[341785052,1731226243651,-575.99867673,0.000145,2]
[341785053,1731226243663,-317.36604668,0.000145,2]
[341785054,1731226243674,-1228.57597959,0.000145,2]
[341785055,1731226243685,-7154.0400421,0.000145,2]
[341785056,1731226243696,-5033.0132181,0.000145,2]
[341785237,1731226246667,-500.0,0.00014199,2]
[341785238,1731226246676,-86.99999995,0.00014199,2]
[341785239,1731226246687,-413.00000005,0.00014199,2]
[341785240,1731226246697,-520.96356617,0.00014199,2]
[341785241,1731226246706,-249.5250949,0.000145,2]
[341785242,1731226249722,200.0,0.000131,4]
[341785243,1731226251500,401.26038,0.000132,4]
[341785244,1731226251522,98.73962,0.000132,4]
[341785245,1731226253807,440.26038,0.000133,4]
[341785246,1731226257374,501.16,0.00011975,2]
[341785254,1731226429982,1000.0,0.00014,14]
[341785261,1731226580798,966.71,0.00027,60]
[341785262,1731226589667,966.71,0.00027,60]
[341785264,1731226599520,966.71,0.00027,60]
[341785265,1731226605101,966.71,0.00027,60]
[341785266,1731226611630,966.71,0.00027,60]
[341785267,1731226617625,966.71,0.00027,60]
[341785268,1731226625291,228.49,0.00027,60]
[341785269,1731226631992,966.71,0.00027,60]
[341785271,1731226842517,-200.0,0.000137,5]
[341785272,1731226842543,-200.0,0.000138,5]
[341785273,1731226842569,-200.0,0.000139,5]
[341785274,1731226910908,-359.73962,0.000133,4]
[341785275,1731226910933,-1100.0,0.000134,4]
[341785276,1731226910957,-1400.0,0.000135,4]
[341785277,1731226910980,-200.0,0.000136,4]
[341785278,1731227002981,476.1,0.00011306,2]
[341785279,1731227032162,-2014.984641,0.00013115,2]
[341785280,1731227032185,-153.05,0.00013176,2]
[341785281,1731227032207,-200.0,0.00013182,2]
[341785282,1731227032230,-295.17,0.00013192,2]
[341785283,1731227032253,-2106.27,0.00013215,2]
[341785284,1731227032280,-1000.0,0.00013228,2]
[341785285,1731227032304,-168.21,0.00013245,2]
[341785286,1731227032325,-250.0,0.00013278,2]
[341785287,1731227032349,-590.08,0.00013374,2]
[341785288,1731227032372,-300.0,0.00013391,2]
[341785289,1731227032394,-11014.57,0.00013392,2]
[341785290,1731227032417,-500.0,0.00013392,2]
[341785291,1731227032441,-476.1,0.0001357,2]
[341785292,1731227032465,-250.0,0.00013636,2]
[341785293,1731227032487,-150.99586821,0.0001393,2]
[341785294,1731227032509,-13666.56949079,0.00014,5]
[341785295,1731227060786,-250.0,0.00013172,2]
[341785296,1731227060809,-219.67860613,0.0001393,2]
[341785297,1731227060832,-150.0,0.00013999,2]
[341785298,1731227061216,-5885.723766,0.00014,5]
[341785299,1731227061240,-19494.59762787,0.00014,5]
[341785301,1731227244129,-250.0,0.000137,2]
[341785302,1731227244149,-55.40237213,0.00014,5]
[341785303,1731227244170,-362.16,0.00014027,2]
[341785304,1731227244192,-153.05,0.00014055,2]
[341785305,1731227244213,-232.17799191,0.00014099,2]
[341785320,1731227371095,-622.34491719,0.00013459,2]
[341785348,1731227431507,-13.25508281,0.00013459,2]
[341785349,1731227431517,-171.77,0.00013515,2]
[341785350,1731227431529,-843.39800809,0.00014099,2]
[341785351,1731227431539,-300.0,0.00014099,2]
[341785352,1731227431549,-150.0,0.00014099,2]
[341785353,1731227431559,-9065.04848099,0.000141,2]
[341785354,1731227431571,-6709.22221901,0.000141,2]
[341785355,1731227431581,-287.7992,0.000141,2]
[341785356,1731227431591,-4638.0757,0.000141,2]
[341785357,1731227431600,-150.0,0.000141,2]
[341785358,1731227431610,-640.12823293,0.0001418,2]
[341785359,1731227431619,-804.4,0.00014184,2]
[341785360,1731227431630,-640.12823293,0.00014204,2]
[341785361,1731227431640,-151.0748,0.00014206,2]
[341785362,1731227431650,-508.977779,0.00014206,2]
[341785363,1731227431659,-154.663546,0.00014206,2]
[341785364,1731227431668,-185.518599,0.00014206,2]
[341785365,1731227431678,-426.22825879,0.0001422,2]
[341785366,1731227431687,-482.70494909,0.00014229,2]
[341785367,1731227431698,-157.42328384,0.00014229,2]
[341785368,1731227431707,-640.12823293,0.00014253,2]
[341785369,1731227431716,-5565.51548323,0.0001427,2]
[341785370,1731227431728,-11317.13723127,0.0001427,2]
[341785371,1731227431738,-640.12823293,0.00014278,2]
[341785372,1731227431747,-160.24342672,0.00014279,2]
[341785373,1731227431757,-168.9959518,0.00014279,2]
[341785374,1731227431767,-79126.5344,0.0001428,2]
[341785375,1731227431777,-13226.873,0.0001428,2]
[341785376,1731227431786,-12716.21787797,0.0001428,2]
[341785377,1731227431804,-1794.848539,0.0001428,2]
[341785378,1731227431902,-735.05928,0.0001428,2]
[341785385,1731227431977,-657.4833942,0.0001428,2]
[341785386,1731227431989,-3524.94300883,0.0001428,2]
[341785387,1731227431998,-1016.0335,0.0001428,2]
[341785389,1731227432007,-1011.0,0.000143,2]
[341785390,1731227432016,-640.12823293,0.00014302,2]
[341785391,1731227432026,-640.12823293,0.00014327,2]
[341785392,1731227432035,-640.12823293,0.00014351,2]
[341785393,1731227432043,-3259.85618907,0.0001436,2]
[341785398,1731227437547,-1134.99753792,0.0001436,2]
[341785399,1731227437556,-640.12823293,0.00014376,2]
[341785400,1731227437565,-500.0,0.00014379,2]
[341785401,1731227437574,-500.0,0.00014379,2]
[341785402,1731227437583,-3.08062748,0.00014379,2]
[341785403,1731227437832,-496.91937252,0.00014379,2]
[341785404,1731227437843,-500.0,0.00014379,2]
[341785405,1731227437852,-500.0,0.00014379,2]
[341785406,1731227437861,-500.0,0.00014379,2]
[341785407,1731227437871,-500.0,0.00014379,2]
[341785408,1731227437883,-212.1893985,0.00014379,2]
[341785409,1731227437891,-500.0,0.00014379,2]
[341785410,1731227437902,-500.0,0.00014379,2]
[341785411,1731227437912,-36.75918998,0.00014379,2]
[341785412,1731227437951,-463.24081002,0.00014379,2]